Workbook

Sheet 예비수강신청
A1: 2025학년도 제2학기 예비수강신신청 '우선확정' 강좌
A2: ※ '우선확정': 우선확정 수강정원 내로 예비수강신청된 경우, 일괄 수강 확정 처리하는 제도
A3: NO | B3: 구분 | C3: 개설대학 | D3: 개설학과 | E3: 과목번호 | F3: 분반 | G3: 과목명 | H3: 학년 (학기) | I3: 대상과정 | J3: 이수구분 | K3: 학점 | L3: 이론 | M3: 실습 | N3: 담당교원 | O3: 본 수강정원 (A) | P3: 예비수강신청 우선확정 수강정원(B) | Q3: 수강정원 대비 '우선확정' 정원 비율 (C=B/A) | R3: 비고
A4: 1 | B4: 학부 | C4: 대학 | D4: 학과공통 | E4: 1000-9084 | F4: 00 | G4: 사회봉사(2) | H4: 1 | I4: 학사과정 | J4: 일반선택 | K4: 1 | L4: 0 | M4: 2 | N4: 류진석 | O4: 80 | P4: 40 | Q4: =IFERROR(P4/O4,"") -> 0.5 | R4: 학생과
A5: 2 | B5: 학부 | C5: 대학 | D5: 학과공통 | E5: 1001-7008 | F5: 00 | G5: 표현과예술심리치료 | H5: 1 | I5: 학사과정 | J5: 교양(소양) | K5: 3 | L5: 3 | M5: 0 | N5: 고홍월 | O5: 40 | P5: 40 | Q5: 1 | R5: 교양교육센터
A6: 3 | B6: 학부 | C6: 대학 | D6: 학과공통 | E6: 1001-7019 | F6: 00 | G6: 생활속텍스트의이해 | H6: 1 | I6: 학사과정 | J6: 교양(소양) | K6: 3 | L6: 3 | M6: 0 | N6: 백미현 | O6: 40 | P6: 40 | Q6: 1 | R6: 교양교육센터
A7: 4 | B7: 학부 | C7: 대학 | D7: 학과공통 | E7: 1001-7034 | F7: 00 | G7: 4차산업혁명시대를위한인문학입문 | H7: 1 | I7: 학사과정 | J7: 교양(소양) | K7: 3 | L7: 3 | M7: 0 | N7: 김경배 | O7: 50 | P7: 40 | Q7: 0.8 | R7: 교양교육센터
A8: 5 | B8: 학부 | C8: 대학 | D8: 학과공통 | E8: 1001-7039 | F8: 00 | G8: 글로컬 리더의 학습과 문제해결 | H8: 1 | I8: 학사과정 | J8: 교양(소양) | K8: 3 | L8: 3 | M8: 0 | N8: 박수정 | O8: 40 | P8: 20 | Q8: 0.5 | R8: 교양교육센터
A9: 6 | B9: 학부 | C9: 대학 | D9: 학과공통 | E9: 1001-7040 | F9: 00 | G9: 유전자와 사회 | H9: 1 | I9: 학사과정 | J9: 교양(소양) | K9: 3 | L9: 3 | M9: 0 | N9: 최인철 | O9: 40 | P9: 30 | Q9: 0.75 | R9: 교양교육센터
A10: 7 | B10: 학부 | C10: 대학 | D10: 학과공통 | E10: 1001-7042 | F10: 00 | G10: 일상에서 만나는 지식재산 | H10: 1 | I10: 학사과정 | J10: 교양(소양) | K10: 3 | L10: 3 | M10: 0 | N10: 김태훈 | O10: 40 | P10: 40 | Q10: 1 | R10: 교양교육센터
A11: 8 | B11: 학부 | C11: 대학 | D11: 학과공통 | E11: 1004-7002 | F11: 00 | G11: 컴퓨터과학적사고 | H11: 1 | I11: 학사과정 | J11: 교양(기초) | K11: 3 | L11: 2 | M11: 2 | N11: 최미선 | O11: 150 | P11: 75 | Q11: 0.5 | R11: 소프트웨어중심대학사업단
A12: 9 | B12: 학부 | C12: 대학 | D12: 학과공통 | E12: 1004-7002 | F12: 01 | G12: 컴퓨터과학적사고 | H12: 1 | I12: 학사과정 | J12: 교양(기초) | K12: 3 | L12: 2 | M12: 2 | N12: 이은주 | O12: 150 | P12: 75 | Q12: 0.5 | R12: 소프트웨어중심대학사업단
A13: 10 | B13: 학부 | C13: 대학 | D13: 학과공통 | E13: 1004-7002 | F13: 02 | G13: 컴퓨터과학적사고 | H13: 1 | I13: 학사과정 | J13: 교양(기초) | K13: 3 | L13: 2 | M13: 2 | N13: 천은영 | O13: 150 | P13: 75 | Q13: 0.5 | R13: 소프트웨어중심대학사업단
A14: 11 | B14: 학부 | C14: 대학 | D14: 학과공통 | E14: 1004-7002 | F14: 03 | G14: 컴퓨터과학적사고 | H14: 1 | I14: 학사과정 | J14: 교양(기초) | K14: 3 | L14: 2 | M14: 2 | N14: 천은영 | O14: 150 | P14: 75 | Q14: 0.5 | R14: 소프트웨어중심대학사업단
A15: 12 | B15: 학부 | C15: 대학 | D15: 학과공통 | E15: 1004-7002 | F15: 04 | G15: 컴퓨터과학적사고 | H15: 1 | I15: 학사과정 | J15: 교양(기초) | K15: 3 | L15: 2 | M15: 2 | N15: 신효정 | O15: 150 | P15: 75 | Q15: 0.5 | R15: 소프트웨어중심대학사업단
A16: 13 | B16: 학부 | C16: 대학 | D16: 학과공통 | E16: 1004-7003 | F16: 08 | G16: 인공지능과 미래사회 | H16: 1 | I16: 학사과정 | J16: 교양(기초) | K16: 3 | L16: 3 | M16: 0 | N16: 이민선 | O16: 100 | P16: 100 | Q16: =IFERROR(P16/O16,"") -> 1 | R16: 소프트웨어중심대학사업단
A17: 14 | B17: 학부 | C17: 대학 | D17: 학과공통 | E17: 1004-7004 | F17: 00 | G17: 인공지능융합기초 | H17: 1 | I17: 학사과정 | J17: 교양(소양) | K17: 3 | L17: 3 | M17: 0 | N17: 조성환 | O17: 25 | P17: 25 | Q17: 1 | R17: 소프트웨어중심대학사업단
A18: 15 | B18: 학부 | C18: 대학 | D18: 학과공통 | E18: 1004-7005 | F18: 00 | G18: 파이썬프로그래밍 | H18: 1 | I18: 학사과정 | J18: 교양(균형) | K18: 3 | L18: 2 | M18: 2 | N18: 김대엽 | O18: 100 | P18: 20 | Q18: 0.2 | R18: 소프트웨어중심대학사업단
A19: 16 | B19: 학부 | C19: 대학 | D19: 학과공통 | E19: 1004-7005 | F19: 01 | G19: 파이썬프로그래밍 | H19: 1 | I19: 학사과정 | J19: 교양(균형) | K19: 3 | L19: 2 | M19: 2 | N19: 김대엽 | O19: 100 | P19: 100 | Q19: 1 | R19: 소프트웨어중심대학사업단
A20: 17 | B20: 학부 | C20: 대학 | D20: 학과공통 | E20: 1004-7006 | F20: 00 | G20: 데이터분석 입문과활용 | H20: 1 | I20: 학사과정 | J20: 교양(균형) | K20: 3 | L20: 2 | M20: 2 | N20: 신효정 | O20: 100 | P20: 60 | Q20: 0.6 | R20: 소프트웨어중심대학사업단
A21: 18 | B21: 학부 | C21: 대학 | D21: 학과공통 | E21: 1004-7007 | F21: 00 | G21: 컴퓨터 이해와 활용 | H21: 1 | I21: 학사과정 | J21: 교양(소양) | K21: 3 | L21: 3 | M21: 0 | N21: 김상형 | O21: 150 | P21: 150 | Q21: 1 | R21: 소프트웨어중심대학사업단
A22: 19 | B22: 학부 | C22: 대학 | D22: 학과공통 | E22: 1004-7007 | F22: 01 | G22: 컴퓨터 이해와 활용 | H22: 1 | I22: 학사과정 | J22: 교양(소양) | K22: 3 | L22: 3 | M22: 0 | N22: 김상형 | O22: 90 | P22: 90 | Q22: 1 | R22: 소프트웨어중심대학사업단
A23: 20 | B23: 학부 | C23: 대학 | D23: 학과공통 | E23: 1004-7008 | F23: 00 | G23: 정보보호입문과활용 | H23: 1 | I23: 학사과정 | J23: 교양(소양) | K23: 3 | L23: 2 | M23: 2 | N23: 원유재 | O23: 35 | P23: 35 | Q23: 1 | R23: 소프트웨어중심대학사업단
A24: 21 | B24: 학부 | C24: 대학 | D24: 학과공통 | E24: 1004-7009 | F24: 00 | G24: 웹프로그래밍기초 | H24: 1 | I24: 학사과정 | J24: 교양(소양) | K24: 3 | L24: 2 | M24: 2 | N24: 노경숙 | O24: 150 | P24: 150 | Q24: 1 | R24: 소프트웨어중심대학사업단
A25: 22 | B25: 학부 | C25: 대학 | D25: 학과공통 | E25: 1004-7010 | F25: 00 | G25: C프로그래밍기초 | H25: 1 | I25: 학사과정 | J25: 교양(소양) | K25: 3 | L25: 2 | M25: 2 | N25: 이은주 | O25: 100 | P25: 60 | Q25: 0.6 | R25: 소프트웨어중심대학사업단
A26: 23 | B26: 학부 | C26: 대학 | D26: 학과공통 | E26: 1004-7012 | F26: 00 | G26: 가상현실 이해와 활용 | H26: 1 | I26: 학사과정 | J26: 교양(소양) | K26: 3 | L26: 2 | M26: 2 | N26: 노창배 | O26: 150 | P26: 150 | Q26: 1 | R26: 소프트웨어중심대학사업단
A27: 24 | B27: 학부 | C27: 대학 | D27: 학과공통 | E27: 1100-9019 | F27: 00 | G27: 생성형 AI 활용 프로젝트 | H27: 1 | I27: 학사과정 | J27: 일반선택 | K27: 1 | L27: 0 | M27: 2 | N27: 최미선 | O27: 100 | P27: 100 | Q27: 1 | R27: 소프트웨어중심대학사업단
A28: 25 | B28: 학부 | C28: 대학 | D28: 학과공통 | E28: 5000-0002 | F28: 00 | G28: 독서지도의 이해 | H28: 1 | I28: 학사과정 | J28: 일반선택 | K28: 3 | L28: 3 | M28: 0 | O28: 25 | P28: 13 | Q28: =IFERROR(P28/O28,"") -> 0.52 | R28: 학사지원과
A29: 26 | B29: 학부 | C29: 대학 | D29: 학과공통 | E29: 5000-0006 | F29: 00 | G29: 알기 쉬운 기업 살림살이 | H29: 1 | I29: 학사과정 | J29: 일반선택 | K29: 3 | L29: 3 | M29: 0 | O29: 20 | P29: 10 | Q29: 0.5 | R29: 학사지원과
A30: 27 | B30: 학부 | C30: 대학 | D30: 학과공통 | E30: 5000-0007 | F30: 00 | G30: 에듀테크의 이해 | H30: 1 | I30: 학사과정 | J30: 일반선택 | K30: 3 | L30: 3 | M30: 0 | O30: 20 | P30: 10 | Q30: 0.5 | R30: 학사지원과
A31: 28 | B31: 학부 | C31: 대학 | D31: 학과공통 | E31: 5000-0338 | F31: 00 | G31: 영화제작에 대해 알고싶은 모든 것 | H31: 1 | I31: 학사과정 | J31: 일반선택 | K31: 3 | L31: 3 | M31: 0 | O31: 25 | P31: 13 | Q31: 0.52 | R31: 학사지원과
A32: 29 | B32: 학부 | C32: 대학 | D32: 학과공통 | E32: 5000-0341 | F32: 00 | G32: 경영정보론 | H32: 1 | I32: 학사과정 | J32: 일반선택 | K32: 3 | L32: 3 | M32: 0 | O32: 20 | P32: 10 | Q32: 0.5 | R32: 학사지원과
A33: 30 | B33: 학부 | C33: 대학 | D33: 학과공통 | E33: 5000-0344 | F33: 00 | G33: 수목치료학 | H33: 1 | I33: 학사과정 | J33: 일반선택 | K33: 3 | L33: 3 | M33: 0 | O33: 20 | P33: 10 | Q33: 0.5 | R33: 학사지원과
A34: 31 | B34: 학부 | C34: 대학 | D34: 학과공통 | E34: 5000-0345 | F34: 00 | G34: 지방자치와 법 | H34: 1 | I34: 학사과정 | J34: 일반선택 | K34: 3 | L34: 3 | M34: 0 | O34: 20 | P34: 10 | Q34: 0.5 | R34: 학사지원과
A35: 32 | B35: 학부 | C35: 대학 | D35: 학과공통 | E35: 5000-0346 | F35: 00 | G35: 국제화 시대의 언어 | H35: 1 | I35: 학사과정 | J35: 일반선택 | K35: 3 | L35: 3 | M35: 0 | O35: 20 | P35: 10 | Q35: 0.5 | R35: 학사지원과
A36: 33 | B36: 학부 | C36: 대학 | D36: 학과공통 | E36: 5000-0347 | F36: 00 | G36: 디지털 스토리텔링과 게임 | H36: 1 | I36: 학사과정 | J36: 일반선택 | K36: 1 | L36: 1 | M36: 0 | O36: 20 | P36: 10 | Q36: 0.5 | R36: 학사지원과
A37: 34 | B37: 학부 | C37: 대학 | D37: 학과공통 | E37: 5000-0350 | F37: 00 | G37: 혁신을위한모순해결 | H37: 1 | I37: 학사과정 | J37: 일반선택 | K37: 2 | L37: 2 | M37: 0 | O37: 20 | P37: 10 | Q37: 0.5 | R37: 학사지원과
A38: 35 | B38: 학부 | C38: 대학 | D38: 학과공통 | E38: 5000-0351 | F38: 00 | G38: 로마문화와 함께 배우는 교양 라틴어 | H38: 1 | I38: 학사과정 | J38: 일반선택 | K38: 3 | L38: 3 | M38: 0 | O38: 20 | P38: 10 | Q38: 0.5 | R38: 학사지원과
A39: 36 | B39: 학부 | C39: 대학 | D39: 학과공통 | E39: 5000-0352 | F39: 00 | G39: 비유와 우화로 보는 철학 산책 | H39: 1 | I39: 학사과정 | J39: 일반선택 | K39: 3 | L39: 3 | M39: 0 | O39: 20 | P39: 10 | Q39: 0.5 | R39: 학사지원과
A40: 37 | B40: 학부 | C40: 대학 | D40: 학과공통 | E40: 5000-0597 | F40: 00 | G40: 컴퓨팅사고력(일반) | H40: 1 | I40: 학사과정 | J40: 일반선택 | K40: 3 | L40: 3 | M40: 0 | O40: 20 | P40: 10 | Q40: 0.5 | R40: 학사지원과
A41: 38 | B41: 학부 | C41: 대학 | D41: 학과공통 | E41: 5000-0598 | F41: 00 | G41: 미디어위키를 활용한 역사데이터 편찬 | H41: 1 | I41: 학사과정 | J41: 일반선택 | K41: 1 | L41: 1 | M41: 0 | O41: 20 | P41: 10 | Q41: 0.5 | R41: 학사지원과
A42: 39 | B42: 학부 | C42: 대학 | D42: 학과공통 | E42: 5000-0600 | F42: 00 | G42: 잉글리시 커뮤니케이션 | H42: 1 | I42: 학사과정 | J42: 일반선택 | K42: 3 | L42: 3 | M42: 0 | O42: 25 | P42: 13 | Q42: 0.52 | R42: 학사지원과
A43: 40 | B43: 학부 | C43: 대학 | D43: 학과공통 | E43: 5000-0602 | F43: 00 | G43: 음성데이터의 특성과 처리 1: 기초 음성학과 음향 분석 | H43: 1 | I43: 학사과정 | J43: 일반선택 | K43: 3 | L43: 3 | M43: 0 | O43: 10 | P43: 5 | Q43: 0.5 | R43: 학사지원과
A44: 41 | B44: 학부 | C44: 대학 | D44: 학과공통 | E44: 5000-0920 | F44: 00 | G44: 이지중국어 | H44: 1 | I44: 학사과정 | J44: 일반선택 | K44: 3 | L44: 3 | M44: 0 | O44: 25 | P44: 13 | Q44: 0.52 | R44: 학사지원과
A45: 42 | B45: 학부 | C45: 대학 | D45: 학과공통 | E45: 5000-0921 | F45: 00 | G45: 지구환경과 자원 | H45: 1 | I45: 학사과정 | J45: 일반선택 | K45: 3 | L45: 3 | M45: 0 | O45: 25 | P45: 13 | Q45: 0.52 | R45: 학사지원과
A46: 43 | B46: 학부 | C46: 대학 | D46: 학과공통 | E46: 5000-0924 | F46: 00 | G46: 동양의 고전 | H46: 1 | I46: 학사과정 | J46: 일반선택 | K46: 3 | L46: 3 | M46: 0 | O46: 20 | P46: 10 | Q46: 0.5 | R46: 학사지원과
A47: 44 | B47: 학부 | C47: 대학 | D47: 학과공통 | E47: 5000-0925 | F47: 00 | G47: 세계종교입문 | H47: 1 | I47: 학사과정 | J47: 일반선택 | K47: 3 | L47: 3 | M47: 0 | O47: 20 | P47: 10 | Q47: 0.5 | R47: 학사지원과
A48: 45 | B48: 학부 | C48: 대학 | D48: 학과공통 | E48: 5000-0926 | F48: 00 | G48: (공유)빅데이터, 인공지능과 예술 | H48: 1 | I48: 학사과정 | J48: 일반선택 | K48: 1 | L48: 1 | M48: 0 | O48: 20 | P48: 10 | Q48: 0.5 | R48: 학사지원과
A49: 46 | B49: 학부 | C49: 대학 | D49: 학과공통 | E49: 5000-0928 | F49: 00 | G49: 에너지환경기술 | H49: 1 | I49: 학사과정 | J49: 일반선택 | K49: 3 | L49: 3 | M49: 0 | O49: 20 | P49: 10 | Q49: 0.5 | R49: 학사지원과
A50: 47 | B50: 학부 | C50: 대학 | D50: 학과공통 | E50: 5000-1128 | F50: 00 | G50: 디지털 리터러시와 인문적 사고 | H50: 1 | I50: 학사과정 | J50: 일반선택 | K50: 3 | L50: 3 | M50: 0 | O50: 10 | P50: 5 | Q50: 0.5 | R50: 학사지원과
A51: 48 | B51: 학부 | C51: 대학 | D51: 학과공통 | E51: 5000-1129 | F51: 00 | G51: 생활구강건강관리 | H51: 1 | I51: 학사과정 | J51: 일반선택 | K51: 3 | L51: 3 | M51: 0 | O51: 20 | P51: 10 | Q51: 0.5 | R51: 학사지원과
A52: 49 | B52: 학부 | C52: 대학 | D52: 학과공통 | E52: 5000-1137 | F52: 00 | G52: 과학사의 이해 | H52: 1 | I52: 학사과정 | J52: 일반선택 | K52: 3 | L52: 3 | M52: 0 | O52: 20 | P52: 10 | Q52: 0.5 | R52: 학사지원과
A53: 50 | B53: 학부 | C53: 대학 | D53: 학과공통 | E53: 5000-1257 | F53: 00 | G53: 전염병과인류의역사 | H53: 1 | I53: 학사과정 | J53: 일반선택 | K53: 3 | L53: 3 | M53: 0 | O53: 20 | P53: 10 | Q53: 0.5 | R53: 학사지원과
A54: 51 | B54: 학부 | C54: 대학 | D54: 학과공통 | E54: 5000-1259 | F54: 00 | G54: 능력검정한국사따라가기 | H54: 1 | I54: 학사과정 | J54: 일반선택 | K54: 3 | L54: 3 | M54: 0 | O54: 20 | P54: 10 | Q54: 0.5 | R54: 학사지원과
A55: 52 | B55: 학부 | C55: 대학 | D55: 학과공통 | E55: 5000-1260 | F55: 00 | G55: 실용한자와고사성어 | H55: 1 | I55: 학사과정 | J55: 일반선택 | K55: 3 | L55: 3 | M55: 0 | O55: 20 | P55: 10 | Q55: 0.5 | R55: 학사지원과
A56: 53 | B56: 학부 | C56: 대학 | D56: 학과공통 | E56: 5000-1477 | F56: 00 | G56: 디지털시대 로컬문화 큐레이팅 | H56: 1 | I56: 학사과정 | J56: 일반선택 | K56: 3 | L56: 3 | M56: 0 | O56: 20 | P56: 10 | Q56: 0.5 | R56: 학사지원과
A57: 54 | B57: 학부 | C57: 대학 | D57: 학과공통 | E57: 5000-1478 | F57: 00 | G57: 예술 감성과 미학 | H57: 1 | I57: 학사과정 | J57: 일반선택 | K57: 3 | L57: 3 | M57: 0 | O57: 20 | P57: 10 | Q57: 0.5 | R57: 학사지원과
A58: 55 | B58: 학부 | C58: 대학 | D58: 학과공통 | E58: 5000-1479 | F58: 00 | G58: SNS와 유튜브론 | H58: 1 | I58: 학사과정 | J58: 일반선택 | K58: 3 | L58: 3 | M58: 0 | O58: 20 | P58: 10 | Q58: 0.5 | R58: 학사지원과
A59: 56 | B59: 학부 | C59: 대학 | D59: 학과공통 | E59: 5000-1480 | F59: 00 | G59: 소비인사이트 | H59: 1 | I59: 학사과정 | J59: 일반선택 | K59: 3 | L59: 3 | M59: 0 | O59: 20 | P59: 10 | Q59: 0.5 | R59: 학사지원과
A60: 57 | B60: 학부 | C60: 대학 | D60: 학과공통 | E60: 5911-9753 | F60: 00 | G60: 생활속의헌법탐험 | H60: 1 | I60: 학사과정 | J60: 일반선택 | K60: 3 | L60: 3 | M60: 0 | O60: 25 | P60: 13 | Q60: 0.52 | R60: 학사지원과
A61: 58 | B61: 학부 | C61: 대학 | D61: 학과공통 | E61: 5911-9755 | F61: 00 | G61: 중국문자의이해 | H61: 1 | I61: 학사과정 | J61: 일반선택 | K61: 3 | L61: 3 | M61: 0 | O61: 25 | P61: 13 | Q61: 0.52 | R61: 학사지원과
A62: 59 | B62: 학부 | C62: 대학 | D62: 학과공통 | E62: 5911-9760 | F62: 00 | G62: 생활속의 한자 | H62: 1 | I62: 학사과정 | J62: 일반선택 | K62: 3 | L62: 3 | M62: 0 | O62: 25 | P62: 13 | Q62: 0.52 | R62: 학사지원과
A63: 60 | B63: 학부 | C63: 대학 | D63: 학과공통 | E63: 5911-9770 | F63: 00 | G63: 문화창업마케팅 | H63: 1 | I63: 학사과정 | J63: 일반선택 | K63: 3 | L63: 3 | M63: 0 | O63: 25 | P63: 13 | Q63: 0.52 | R63: 학사지원과
A64: 61 | B64: 학부 | C64: 대학 | D64: 학과공통 | E64: 5911-9774 | F64: 00 | G64: 미래사회와 과학기술 | H64: 1 | I64: 학사과정 | J64: 일반선택 | K64: 3 | L64: 3 | M64: 0 | O64: 25 | P64: 13 | Q64: 0.52 | R64: 학사지원과
A65: 62 | B65: 학부 | C65: 대학 | D65: 학과공통 | E65: 5911-9775 | F65: 00 | G65: MZ세대의 인간관계 | H65: 1 | I65: 학사과정 | J65: 일반선택 | K65: 3 | L65: 3 | M65: 0 | O65: 25 | P65: 13 | Q65: 0.52 | R65: 학사지원과
A66: 63 | B66: 학부 | C66: 대학 | D66: 학과공통 | E66: 5911-9776 | F66: 00 | G66: 다문화사회의 이해 | H66: 1 | I66: 학사과정 | J66: 일반선택 | K66: 3 | L66: 3 | M66: 0 | O66: 20 | P66: 10 | Q66: 0.5 | R66: 학사지원과
A67: 64 | B67: 학부 | C67: 대학 | D67: 학과공통 | E67: 5911-9777 | F67: 00 | G67: 소비문화 | H67: 1 | I67: 학사과정 | J67: 일반선택 | K67: 3 | L67: 3 | M67: 0 | O67: 20 | P67: 10 | Q67: 0.5 | R67: 학사지원과
A68: 65 | B68: 학부 | C68: 대학 | D68: 학과공통 | E68: 5911-9781 | F68: 00 | G68: 평화사상과 통일의 길 | H68: 1 | I68: 학사과정 | J68: 일반선택 | K68: 2 | L68: 2 | M68: 0 | O68: 20 | P68: 10 | Q68: 0.5 | R68: 학사지원과
A69: 66 | B69: 학부 | C69: 대학 | D69: 학과공통 | E69: 5911-9783 | F69: 00 | G69: 위험사회와 미래직업 | H69: 1 | I69: 학사과정 | J69: 일반선택 | K69: 3 | L69: 3 | M69: 0 | O69: 20 | P69: 10 | Q69: 0.5 | R69: 학사지원과
A70: 67 | B70: 학부 | C70: 대학 | D70: 학과공통 | E70: 5911-9787 | F70: 00 | G70: 한옥개론 | H70: 1 | I70: 학사과정 | J70: 일반선택 | K70: 3 | L70: 3 | M70: 0 | O70: 20 | P70: 10 | Q70: 0.5 | R70: 학사지원과
A71: 68 | B71: 학부 | C71: 대학 | D71: 학과공통 | E71: 5911-9789 | F71: 00 | G71: 환경문제와 윤리 | H71: 1 | I71: 학사과정 | J71: 일반선택 | K71: 2 | L71: 2 | M71: 0 | O71: 20 | P71: 10 | Q71: 0.5 | R71: 학사지원과
A72: 69 | B72: 학부 | C72: 대학 | D72: 학과공통 | E72: 5911-9791 | F72: 00 | G72: 우주로의 여행 | H72: 1 | I72: 학사과정 | J72: 일반선택 | K72: 3 | L72: 3 | M72: 0 | O72: 20 | P72: 10 | Q72: 0.5 | R72: 학사지원과
A73: 70 | B73: 학부 | C73: 대학 | D73: 학과공통 | E73: 5911-9792 | F73: 00 | G73: 여행과문화 | H73: 1 | I73: 학사과정 | J73: 일반선택 | K73: 3 | L73: 3 | M73: 0 | O73: 20 | P73: 10 | Q73: 0.5 | R73: 학사지원과
A74: 71 | B74: 학부 | C74: 대학 | D74: 학과공통 | E74: 5911-9793 | F74: 00 | G74: 강원문화사 | H74: 1 | I74: 학사과정 | J74: 일반선택 | K74: 3 | L74: 3 | M74: 0 | O74: 20 | P74: 10 | Q74: 0.5 | R74: 학사지원과
A75: 72 | B75: 학부 | C75: 대학 | D75: 학과공통 | E75: 5911-9795 | F75: 00 | G75: 서양고대철학 | H75: 1 | I75: 학사과정 | J75: 일반선택 | K75: 3 | L75: 3 | M75: 0 | O75: 20 | P75: 10 | Q75: 0.5 | R75: 학사지원과
A76: 73 | B76: 학부 | C76: 대학 | D76: 학과공통 | E76: 5911-9796 | F76: 00 | G76: 화훼산업론 | H76: 1 | I76: 학사과정 | J76: 일반선택 | K76: 3 | L76: 3 | M76: 0 | O76: 20 | P76: 10 | Q76: 0.5 | R76: 학사지원과
A77: 74 | B77: 학부 | C77: 대학 | D77: 학과공통 | E77: 5911-9797 | F77: 00 | G77: 중국고대철학 | H77: 1 | I77: 학사과정 | J77: 일반선택 | K77: 3 | L77: 3 | M77: 0 | O77: 20 | P77: 10 | Q77: 0.5 | R77: 학사지원과
A78: 75 | B78: 학부 | C78: 대학 | D78: 학과공통 | E78: 5911-9799 | F78: 00 | G78: 심리학의 이해 | H78: 1 | I78: 학사과정 | J78: 일반선택 | K78: 3 | L78: 3 | M78: 0 | O78: 20 | P78: 10 | Q78: 0.5 | R78: 학사지원과
A79: 76 | B79: 학부 | C79: 대학 | D79: 학과공통 | E79: 5911-9801 | F79: 00 | G79: 무역실무 | H79: 1 | I79: 학사과정 | J79: 일반선택 | K79: 3 | L79: 3 | M79: 0 | O79: 20 | P79: 10 | Q79: 0.5 | R79: 학사지원과
A80: 77 | B80: 학부 | C80: 대학 | D80: 학과공통 | E80: 5911-9803 | F80: 00 | G80: 한국지형여행 | H80: 1 | I80: 학사과정 | J80: 일반선택 | K80: 3 | L80: 3 | M80: 0 | O80: 20 | P80: 10 | Q80: 0.5 | R80: 학사지원과
A81: 78 | B81: 학부 | C81: 대학 | D81: 학과공통 | E81: 5911-9804 | F81: 00 | G81: 불교가 묻고 내가 답한다 | H81: 1 | I81: 학사과정 | J81: 일반선택 | K81: 3 | L81: 3 | M81: 0 | O81: 20 | P81: 10 | Q81: =IFERROR(P81/O81,"") -> 0.5 | R81: 학사지원과
A82: 79 | B82: 학부 | C82: 대학 | D82: 학과공통 | E82: 5911-9806 | F82: 00 | G82: 산업경영의이해 | H82: 1 | I82: 학사과정 | J82: 일반선택 | K82: 2 | L82: 2 | M82: 0 | O82: 20 | P82: 10 | Q82: 0.5 | R82: 학사지원과
A83: 80 | B83: 학부 | C83: 대학 | D83: 학과공통 | E83: 5911-9807 | F83: 00 | G83: 도시개발론 | H83: 1 | I83: 학사과정 | J83: 일반선택 | K83: 3 | L83: 3 | M83: 0 | O83: 20 | P83: 10 | Q83: 0.5 | R83: 학사지원과
A84: 81 | B84: 학부 | C84: 인문대학 | D84: 국어국문학과 | E84: 1101-1003 | F84: 00 | G84: 국어형태론 | H84: 1 | I84: 학사과정 | J84: 전공(핵심) | K84: 3 | L84: 3 | M84: 0 | N84: 박재희 | O84: 30 | P84: 25 | Q84: 0.8333333333
A85: 82 | B85: 학부 | C85: 인문대학 | D85: 국어국문학과 | E85: 1101-1008 | F85: 00 | G85: 한자와한국한문학의이해 | H85: 1 | I85: 학사과정 | J85: 전공(핵심) | K85: 3 | L85: 3 | M85: 0 | N85: 김기영 | O85: 30 | P85: 25 | Q85: 0.8333333333
A86: 83 | B86: 학부 | C86: 인문대학 | D86: 국어국문학과 | E86: 1101-1009 | F86: 00 | G86: 문학의이해 | H86: 1 | I86: 학사과정 | J86: 전공(핵심) | K86: 3 | L86: 3 | M86: 0 | N86: 홍혜원 | O86: 30 | P86: 25 | Q86: 0.8333333333
A87: 84 | B87: 학부 | C87: 인문대학 | D87: 국어국문학과 | E87: 1101-1009 | F87: 01 | G87: 문학의이해 | H87: 1 | I87: 학사과정 | J87: 전공(핵심) | K87: 3 | L87: 3 | M87: 0 | N87: 이하은 | O87: 30 | P87: 25 | Q87: 0.8333333333
A88: 85 | B88: 학부 | C88: 인문대학 | D88: 국어국문학과 | E88: 1101-2002 | F88: 00 | G88: 현대소설강독 | H88: 2 | I88: 학사과정 | J88: 전공(핵심) | K88: 3 | L88: 3 | M88: 0 | N88: 송기섭 | O88: 30 | P88: 25 | Q88: 0.8333333333
A89: 86 | B89: 학부 | C89: 인문대학 | D89: 국어국문학과 | E89: 1101-2003 | F89: 00 | G89: 국어음운론 | H89: 2 | I89: 학사과정 | J89: 전공(핵심) | K89: 3 | L89: 3 | M89: 0 | N89: 김정태 | O89: 30 | P89: 25 | Q89: 0.8333333333
A90: 87 | B90: 학부 | C90: 인문대학 | D90: 국어국문학과 | E90: 1101-2004 | F90: 00 | G90: 시론 | H90: 2 | I90: 학사과정 | J90: 전공(핵심) | K90: 3 | L90: 3 | M90: 0 | O90: 30 | P90: 25 | Q90: 0.8333333333
A91: 88 | B91: 학부 | C91: 인문대학 | D91: 국어국문학과 | E91: 1101-2006 | F91: 00 | G91: 국어자료의 이해 | H91: 2 | I91: 학사과정 | J91: 전공(심화) | K91: 3 | L91: 3 | M91: 0 | N91: 이금영 | O91: 30 | P91: 25 | Q91: 0.8333333333
A92: 89 | B92: 학부 | C92: 인문대학 | D92: 국어국문학과 | E92: 1101-2007 | F92: 00 | G92: 고전소설강독 | H92: 2 | I92: 학사과정 | J92: 전공(핵심) | K92: 3 | L92: 3 | M92: 0 | O92: 30 | P92: 25 | Q92: 0.8333333333
A93: 90 | B93: 학부 | C93: 인문대학 | D93: 국어국문학과 | E93: 1101-2012 | F93: 00 | G93: 설화문학론 | H93: 2 | I93: 학사과정 | J93: 전공(심화) | K93: 3 | L93: 3 | M93: 0 | N93: 윤준섭 | O93: 30 | P93: 25 | Q93: 0.8333333333
A94: 91 | B94: 학부 | C94: 인문대학 | D94: 국어국문학과 | E94: 1101-3002 | F94: 00 | G94: 현대문학사 | H94: 3 | I94: 학사과정 | J94: 전공(핵심) | K94: 3 | L94: 3 | M94: 0 | N94: 이형권 | O94: 30 | P94: 25 | Q94: 0.8333333333
A95: 92 | B95: 학부 | C95: 인문대학 | D95: 국어국문학과 | E95: 1101-3006 | F95: 00 | G95: 국어사 | H95: 3 | I95: 학사과정 | J95: 전공(핵심) | K95: 3 | L95: 3 | M95: 0 | N95: 이금영 | O95: 30 | P95: 25 | Q95: 0.8333333333
A96: 93 | B96: 학부 | C96: 인문대학 | D96: 국어국문학과 | E96: 1101-3012 | F96: 00 | G96: 한국한문학론 | H96: 3 | I96: 학사과정 | J96: 전공(핵심) | K96: 3 | L96: 3 | M96: 0 | N96: 정기선 | O96: 30 | P96: 25 | Q96: 0.8333333333
A97: 94 | B97: 학부 | C97: 인문대학 | D97: 국어국문학과 | E97: 1101-3013 | F97: 00 | G97: 훈민정음의이해 | H97: 3 | I97: 학사과정 | J97: 전공(심화) | K97: 3 | L97: 3 | M97: 0 | O97: 30 | P97: 25 | Q97: 0.8333333333
A98: 95 | B98: 학부 | C98: 인문대학 | D98: 국어국문학과 | E98: 1101-3019 | F98: 00 | G98: 한국의연희와극문학 | H98: 3 | I98: 학사과정 | J98: 전공(심화) | K98: 3 | L98: 3 | M98: 0 | O98: 30 | P98: 25 | Q98: 0.8333333333
A99: 96 | B99: 학부 | C99: 인문대학 | D99: 국어국문학과 | E99: 1101-3020 | F99: 00 | G99: 현대작가의이해 | H99: 3 | I99: 학사과정 | J99: 전공(심화) | K99: 3 | L99: 3 | M99: 0 | N99: 윤석진 | O99: 30 | P99: 25 | Q99: 0.8333333333
A100: 97 | B100: 학부 | C100: 인문대학 | D100: 국어국문학과 | E100: 1101-3021 | F100: 00 | G100: 국어정보학 | H100: 3 | I100: 학사과정 | J100: 전공(심화) | K100: 3 | L100: 3 | M100: 0 | N100: 함병호 | O100: 30 | P100: 25 | Q100: 0.8333333333
A101: 98 | B101: 학부 | C101: 인문대학 | D101: 국어국문학과 | E101: 1101-4001 | F101: 00 | G101: 문예사조 | H101: 4 | I101: 학사과정 | J101: 전공(심화) | K101: 3 | L101: 3 | M101: 0 | N101: 홍혜원 | O101: 30 | P101: 25 | Q101: 0.8333333333
A102: 99 | B102: 학부 | C102: 인문대학 | D102: 국어국문학과 | E102: 1101-4011 | F102: 00 | G102: 옛말문법론 | H102: 4 | I102: 학사과정 | J102: 전공(심화) | K102: 3 | L102: 3 | M102: 0 | N102: 박재희 | O102: 30 | P102: 25 | Q102: 0.8333333333
A103: 100 | B103: 학부 | C103: 인문대학 | D103: 국어국문학과 | E103: 1101-4013 | F103: 00 | G103: 향가와여요의세계 | H103: 4 | I103: 학사과정 | J103: 전공(심화) | K103: 3 | L103: 3 | M103: 0 | N103: 정기선 | O103: 30 | P103: 25 | Q103: 0.8333333333
A104: 101 | B104: 학부 | C104: 인문대학 | D104: 국어국문학과 | E104: 1101-4015 | F104: 00 | G104: 현대문학세미나 | H104: 4 | I104: 학사과정 | J104: 전공(심화) | K104: 3 | L104: 3 | M104: 0 | N104: 송기섭 | O104: 30 | P104: 25 | Q104: 0.8333333333
A105: 102 | B105: 학부 | C105: 인문대학 | D105: 국어국문학과 | E105: 1101-7006 | F105: 00 | G105: 영화와문학 | H105: 1 | I105: 학사과정 | J105: 교양(소양) | K105: 3 | L105: 3 | M105: 0 | N105: 조규찬 | O105: 40 | P105: 30 | Q105: 0.75
A106: 103 | B106: 학부 | C106: 인문대학 | D106: 국어국문학과 | E106: 1101-7006 | F106: 01 | G106: 영화와문학 | H106: 1 | I106: 학사과정 | J106: 교양(소양) | K106: 3 | L106: 3 | M106: 0 | N106: 권양현 | O106: 40 | P106: 30 | Q106: 0.75
A107: 104 | B107: 학부 | C107: 인문대학 | D107: 국어국문학과 | E107: 1101-7008 | F107: 00 | G107: 공학논문작성과 발표 | H107: 1 | I107: 학사과정 | J107: 교양(소양) | K107: 3 | L107: 3 | M107: 0 | N107: 김현화 | O107: 40 | P107: 30 | Q107: 0.75
A108: 105 | B108: 학부 | C108: 인문대학 | D108: 국어국문학과 | E108: 1101-7013 | F108: 00 | G108: 자연과학글쓰기 | H108: 1 | I108: 학사과정 | J108: 교양(소양) | K108: 3 | L108: 3 | M108: 0 | N108: 오영록 | O108: 40 | P108: 30 | Q108: 0.75
A109: 106 | B109: 학부 | C109: 인문대학 | D109: 국어국문학과 | E109: 1101-7014 | F109: 00 | G109: 한국어 쓰기 1 | H109: 1 | I109: 학사과정 | J109: 교양(소양) | K109: 3 | L109: 3 | M109: 0 | O109: 30 | P109: 25 | Q109: 0.8333333333
A110: 107 | B110: 학부 | C110: 인문대학 | D110: 국어국문학과 | E110: 1101-7014 | F110: 01 | G110: 한국어 쓰기 1 | H110: 1 | I110: 학사과정 | J110: 교양(소양) | K110: 3 | L110: 3 | M110: 0 | N110: 장지현 | O110: 30 | P110: 25 | Q110: 0.8333333333
A111: 108 | B111: 학부 | C111: 인문대학 | D111: 국어국문학과 | E111: 1101-7015 | F111: 00 | G111: 한국어 쓰기 2 | H111: 1 | I111: 학사과정 | J111: 교양(소양) | K111: 3 | L111: 3 | M111: 0 | O111: 30 | P111: 25 | Q111: 0.8333333333
A112: 109 | B112: 학부 | C112: 인문대학 | D112: 국어국문학과 | E112: 1101-7015 | F112: 01 | G112: 한국어 쓰기 2 | H112: 1 | I112: 학사과정 | J112: 교양(소양) | K112: 3 | L112: 3 | M112: 0 | N112: 이정은 | O112: 30 | P112: 25 | Q112: 0.8333333333
A113: 110 | B113: 학부 | C113: 인문대학 | D113: 국어국문학과 | E113: 1101-7017 | F113: 00 | G113: 콘텐츠 창작 글쓰기 | H113: 1 | I113: 학사과정 | J113: 교양(소양) | K113: 3 | L113: 3 | M113: 0 | O113: 30 | P113: 25 | Q113: 0.8333333333
A114: 111 | B114: 학부 | C114: 인문대학 | D114: 국어국문학과 | E114: 1101-7017 | F114: 01 | G114: 콘텐츠 창작 글쓰기 | H114: 1 | I114: 학사과정 | J114: 교양(소양) | K114: 3 | L114: 3 | M114: 0 | N114: 유정미 | O114: 30 | P114: 25 | Q114: 0.8333333333
A115: 112 | B115: 학부 | C115: 인문대학 | D115: 국어국문학과 | E115: 1101-7018 | F115: 00 | G115: 현대사회와 실용 글쓰기 | H115: 1 | I115: 학사과정 | J115: 교양(소양) | K115: 3 | L115: 3 | M115: 0 | O115: 30 | P115: 25 | Q115: 0.8333333333
A116: 113 | B116: 학부 | C116: 인문대학 | D116: 국어국문학과 | E116: 1101-7018 | F116: 01 | G116: 현대사회와 실용 글쓰기 | H116: 1 | I116: 학사과정 | J116: 교양(소양) | K116: 3 | L116: 3 | M116: 0 | O116: 30 | P116: 25 | Q116: 0.8333333333
A117: 114 | B117: 학부 | C117: 인문대학 | D117: 국어국문학과 | E117: 1101-7020 | F117: 00 | G117: 한국인의 삶과 문학 | H117: 1 | I117: 학사과정 | J117: 교양(균형) | K117: 3 | L117: 3 | M117: 0 | N117: 이하은 | O117: 50 | P117: 35 | Q117: =IFERROR(P117/O117,"") -> 0.7
A118: 115 | B118: 학부 | C118: 인문대학 | D118: 국어국문학과 | E118: 1101-7021 | F118: 00 | G118: 행복한 삶을 위한 말하기 | H118: 1 | I118: 학사과정 | J118: 교양(균형) | K118: 3 | L118: 3 | M118: 0 | N118: 김정인 | O118: 50 | P118: 35 | Q118: 0.7
A119: 116 | B119: 학부 | C119: 인문대학 | D119: 영어영문학과 | E119: 1102-3007 | F119: 00 | G119: 영어어휘의 이해 | H119: 3 | I119: 학사과정 | J119: 전공(심화) | K119: 3 | L119: 3 | M119: 0 | N119: 백미현 | O119: 40 | P119: 40 | Q119: =IFERROR(P119/O119,"") -> 1
A120: 117 | B120: 학부 | C120: 인문대학 | D120: 영어영문학과 | E120: 1102-3007 | F120: 01 | G120: 영어어휘의 이해 | H120: 3 | I120: 학사과정 | J120: 전공(심화) | K120: 3 | L120: 3 | M120: 0 | N120: 백미현 | O120: 40 | P120: 40 | Q120: 1
A121: 118 | B121: 학부 | C121: 인문대학 | D121: 독어독문학과 | E121: 1103-7001 | F121: 00 | G121: 기초독일어 | H121: 1 | I121: 학사과정 | J121: 교양(기초) | K121: 3 | L121: 3 | M121: 0 | O121: 50 | P121: 25 | Q121: =IFERROR(P121/O121,"") -> 0.5
A122: 119 | B122: 학부 | C122: 인문대학 | D122: 독어독문학과 | E122: 1103-7001 | F122: 01 | G122: 기초독일어 | H122: 1 | I122: 학사과정 | J122: 교양(기초) | K122: 3 | L122: 3 | M122: 0 | O122: 50 | P122: 25 | Q122: 0.5
A123: 120 | B123: 학부 | C123: 인문대학 | D123: 독어독문학과 | E123: 1103-7001 | F123: 02 | G123: 기초독일어 | H123: 1 | I123: 학사과정 | J123: 교양(기초) | K123: 3 | L123: 3 | M123: 0 | N123: 임유영 | O123: 50 | P123: 25 | Q123: 0.5
A124: 121 | B124: 학부 | C124: 인문대학 | D124: 독어독문학과 | E124: 1103-7001 | F124: 03 | G124: 기초독일어 | H124: 1 | I124: 학사과정 | J124: 교양(기초) | K124: 3 | L124: 3 | M124: 0 | N124: 함수옥 | O124: 50 | P124: 25 | Q124: 0.5
A125: 122 | B125: 학부 | C125: 인문대학 | D125: 독어독문학과 | E125: 1103-7001 | F125: 04 | G125: 기초독일어 | H125: 1 | I125: 학사과정 | J125: 교양(기초) | K125: 3 | L125: 3 | M125: 0 | N125: 함수옥 | O125: 50 | P125: 25 | Q125: 0.5
A126: 123 | B126: 학부 | C126: 인문대학 | D126: 독어독문학과 | E126: 1103-7004 | F126: 00 | G126: 독일명작의 이해 | H126: 1 | I126: 학사과정 | J126: 교양(균형) | K126: 3 | L126: 3 | M126: 0 | N126: 임유영 | O126: 90 | P126: 45 | Q126: 0.5
A127: 124 | B127: 학부 | C127: 인문대학 | D127: 독어독문학과 | E127: 1103-7005 | F127: 00 | G127: 독일문화 산책 | H127: 1 | I127: 학사과정 | J127: 교양(균형) | K127: 3 | L127: 3 | M127: 0 | N127: 이군호 | O127: 90 | P127: 45 | Q127: 0.5
A128: 125 | B128: 학부 | C128: 인문대학 | D128: 독어독문학과 | E128: 1103-7007 | F128: 00 | G128: 기초독일어 2 | H128: 1 | I128: 학사과정 | J128: 교양(소양) | K128: 3 | L128: 3 | M128: 0 | N128: 이정현 | O128: 80 | P128: 40 | Q128: 0.5
A129: 126 | B129: 학부 | C129: 인문대학 | D129: 불어불문학과 | E129: 1104-7001 | F129: 00 | G129: 프랑스문화 테마기행 | H129: 1 | I129: 학사과정 | J129: 교양(균형) | K129: 3 | L129: 3 | M129: 0 | N129: 조현진 | O129: 70 | P129: 50 | Q129: 0.7142857143
A130: 127 | B130: 학부 | C130: 인문대학 | D130: 불어불문학과 | E130: 1104-7001 | F130: 01 | G130: 프랑스문화 테마기행 | H130: 1 | I130: 학사과정 | J130: 교양(균형) | K130: 3 | L130: 3 | M130: 0 | N130: 박문규 | O130: 70 | P130: 50 | Q130: 0.7142857143
A131: 128 | B131: 학부 | C131: 인문대학 | D131: 불어불문학과 | E131: 1104-7001 | F131: 02 | G131: 프랑스문화 테마기행 | H131: 1 | I131: 학사과정 | J131: 교양(균형) | K131: 3 | L131: 3 | M131: 0 | N131: 권수경 | O131: 70 | P131: 50 | Q131: 0.7142857143
A132: 129 | B132: 학부 | C132: 인문대학 | D132: 불어불문학과 | E132: 1104-7001 | F132: 03 | G132: 프랑스문화 테마기행 | H132: 1 | I132: 학사과정 | J132: 교양(균형) | K132: 3 | L132: 3 | M132: 0 | N132: 정재훈 | O132: 70 | P132: 50 | Q132: 0.7142857143
A133: 130 | B133: 학부 | C133: 인문대학 | D133: 불어불문학과 | E133: 1104-7001 | F133: 04 | G133: 프랑스문화 테마기행 | H133: 1 | I133: 학사과정 | J133: 교양(균형) | K133: 3 | L133: 3 | M133: 0 | N133: 송진석 | O133: 70 | P133: 50 | Q133: 0.7142857143
A134: 131 | B134: 학부 | C134: 인문대학 | D134: 불어불문학과 | E134: 1104-7003 | F134: 00 | G134: 생활프랑스어 | H134: 1 | I134: 학사과정 | J134: 교양(기초) | K134: 3 | L134: 3 | M134: 0 | N134: 구인모 | O134: 50 | P134: 35 | Q134: 0.7
A135: 132 | B135: 학부 | C135: 인문대학 | D135: 불어불문학과 | E135: 1104-7003 | F135: 01 | G135: 생활프랑스어 | H135: 1 | I135: 학사과정 | J135: 교양(기초) | K135: 3 | L135: 3 | M135: 0 | N135: 조현진 | O135: 50 | P135: 35 | Q135: 0.7
A136: 133 | B136: 학부 | C136: 인문대학 | D136: 불어불문학과 | E136: 1104-7003 | F136: 02 | G136: 생활프랑스어 | H136: 1 | I136: 학사과정 | J136: 교양(기초) | K136: 3 | L136: 3 | M136: 0 | N136: 김미현 | O136: 50 | P136: 35 | Q136: =IFERROR(P136/O136,"") -> 0.7
A137: 134 | B137: 학부 | C137: 인문대학 | D137: 불어불문학과 | E137: 1104-7004 | F137: 00 | G137: 프랑스축제와문화콘텐츠 | H137: 1 | I137: 학사과정 | J137: 교양(균형) | K137: 3 | L137: 3 | M137: 0 | N137: 박문규 | O137: 90 | P137: 70 | Q137: 0.7777777778
A138: 135 | B138: 학부 | C138: 인문대학 | D138: 중어중문학과 | E138: 1105-7001 | F138: 00 | G138: 중국의 고사성어 | H138: 1 | I138: 학사과정 | J138: 교양(균형) | K138: 3 | L138: 3 | M138: 0 | N138: 권혜리 | O138: 40 | P138: 40 | Q138: 1
A139: 136 | B139: 학부 | C139: 인문대학 | D139: 중어중문학과 | E139: 1105-7004 | F139: 00 | G139: 중국어 | H139: 1 | I139: 학사과정 | J139: 교양(기초) | K139: 3 | L139: 3 | M139: 0 | N139: 김홍실 | O139: 60 | P139: 60 | Q139: 1
A140: 137 | B140: 학부 | C140: 인문대학 | D140: 중어중문학과 | E140: 1105-7004 | F140: 01 | G140: 중국어 | H140: 1 | I140: 학사과정 | J140: 교양(기초) | K140: 3 | L140: 3 | M140: 0 | N140: 이근석 | O140: 50 | P140: 50 | Q140: 1
A141: 138 | B141: 학부 | C141: 인문대학 | D141: 중어중문학과 | E141: 1105-7004 | F141: 02 | G141: 중국어 | H141: 1 | I141: 학사과정 | J141: 교양(기초) | K141: 3 | L141: 3 | M141: 0 | N141: 김선희 | O141: 50 | P141: 50 | Q141: 1
A142: 139 | B142: 학부 | C142: 인문대학 | D142: 중어중문학과 | E142: 1105-7005 | F142: 00 | G142: 중국테마기행 | H142: 1 | I142: 학사과정 | J142: 교양(균형) | K142: 3 | L142: 3 | M142: 0 | N142: 성나영 | O142: 50 | P142: 40 | Q142: 0.8
A143: 140 | B143: 학부 | C143: 인문대학 | D143: 중어중문학과 | E143: 1105-7005 | F143: 01 | G143: 중국테마기행 | H143: 1 | I143: 학사과정 | J143: 교양(균형) | K143: 3 | L143: 3 | M143: 0 | N143: 이은수 | O143: 50 | P143: 50 | Q143: 1
A144: 141 | B144: 학부 | C144: 인문대학 | D144: 일어일문학과 | E144: 1106-7001 | F144: 00 | G144: 생활일본어1 | H144: 1 | I144: 학사과정 | J144: 교양(기초) | K144: 3 | L144: 3 | M144: 0 | N144: 도현아 | O144: 55 | P144: 35 | Q144: 0.6363636364
A145: 142 | B145: 학부 | C145: 인문대학 | D145: 일어일문학과 | E145: 1106-7001 | F145: 01 | G145: 생활일본어1 | H145: 1 | I145: 학사과정 | J145: 교양(기초) | K145: 3 | L145: 3 | M145: 0 | N145: 금종애 | O145: 55 | P145: 35 | Q145: 0.6363636364
A146: 143 | B146: 학부 | C146: 인문대학 | D146: 일어일문학과 | E146: 1106-7001 | F146: 02 | G146: 생활일본어1 | H146: 1 | I146: 학사과정 | J146: 교양(기초) | K146: 3 | L146: 3 | M146: 0 | N146: 이지숙 | O146: 55 | P146: 35 | Q146: 0.6363636364
A147: 144 | B147: 학부 | C147: 인문대학 | D147: 일어일문학과 | E147: 1106-7003 | F147: 00 | G147: 일본문화 | H147: 1 | I147: 학사과정 | J147: 교양(균형) | K147: 3 | L147: 3 | M147: 0 | N147: 김학순 | O147: 80 | P147: 60 | Q147: 0.75
A148: 145 | B148: 학부 | C148: 인문대학 | D148: 일어일문학과 | E148: 1106-7003 | F148: 01 | G148: 일본문화 | H148: 1 | I148: 학사과정 | J148: 교양(균형) | K148: 3 | L148: 3 | M148: 0 | N148: 김은영 | O148: 80 | P148: 60 | Q148: 0.75
A149: 146 | B149: 학부 | C149: 인문대학 | D149: 일어일문학과 | E149: 1106-7003 | F149: 02 | G149: 일본문화 | H149: 1 | I149: 학사과정 | J149: 교양(균형) | K149: 3 | L149: 3 | M149: 0 | N149: 이혜인 | O149: 80 | P149: 60 | Q149: 0.75
A150: 147 | B150: 학부 | C150: 인문대학 | D150: 일어일문학과 | E150: 1106-7003 | F150: 03 | G150: 일본문화 | H150: 1 | I150: 학사과정 | J150: 교양(균형) | K150: 3 | L150: 3 | M150: 0 | N150: 이문호 | O150: 80 | P150: 60 | Q150: 0.75
A151: 148 | B151: 학부 | C151: 인문대학 | D151: 일어일문학과 | E151: 1106-7005 | F151: 00 | G151: 미디어로 배우는 일본어 | H151: 1 | I151: 학사과정 | J151: 교양(소양) | K151: 3 | L151: 3 | M151: 0 | N151: 김은모 | O151: 50 | P151: 35 | Q151: 0.7
A152: 149 | B152: 학부 | C152: 인문대학 | D152: 한문학과 | E152: 1107-7001 | F152: 00 | G152: 한문고전과삶의지혜 | H152: 1 | I152: 학사과정 | J152: 교양(균형) | K152: 3 | L152: 3 | M152: 0 | O152: 60 | P152: 30 | Q152: =IFERROR(P152/O152,"") -> 0.5
A153: 150 | B153: 학부 | C153: 인문대학 | D153: 한문학과 | E153: 1107-7001 | F153: 01 | G153: 한문고전과삶의지혜 | H153: 1 | I153: 학사과정 | J153: 교양(균형) | K153: 3 | L153: 3 | M153: 0 | O153: 60 | P153: 30 | Q153: 0.5
A154: 151 | B154: 학부 | C154: 인문대학 | D154: 한문학과 | E154: 1107-7001 | F154: 02 | G154: 한문고전과삶의지혜 | H154: 1 | I154: 학사과정 | J154: 교양(균형) | K154: 3 | L154: 3 | M154: 0 | O154: 60 | P154: 30 | Q154: 0.5
A155: 152 | B155: 학부 | C155: 인문대학 | D155: 한문학과 | E155: 1107-7001 | F155: 03 | G155: 한문고전과삶의지혜 | H155: 1 | I155: 학사과정 | J155: 교양(균형) | K155: 3 | L155: 3 | M155: 0 | O155: 40 | P155: 20 | Q155: 0.5
A156: 153 | B156: 학부 | C156: 인문대학 | D156: 한문학과 | E156: 1107-7002 | F156: 00 | G156: 기초한문 | H156: 1 | I156: 학사과정 | J156: 교양(기초) | K156: 3 | L156: 3 | M156: 0 | N156: 조정윤 | O156: 50 | P156: 25 | Q156: 0.5
A157: 154 | B157: 학부 | C157: 인문대학 | D157: 한문학과 | E157: 1107-7002 | F157: 01 | G157: 기초한문 | H157: 1 | I157: 학사과정 | J157: 교양(기초) | K157: 3 | L157: 3 | M157: 0 | O157: 50 | P157: 25 | Q157: 0.5
A158: 155 | B158: 학부 | C158: 인문대학 | D158: 한문학과 | E158: 1107-7002 | F158: 02 | G158: 기초한문 | H158: 1 | I158: 학사과정 | J158: 교양(기초) | K158: 3 | L158: 3 | M158: 0 | O158: 50 | P158: 25 | Q158: 0.5
A159: 156 | B159: 학부 | C159: 인문대학 | D159: 한문학과 | E159: 1107-7002 | F159: 03 | G159: 기초한문 | H159: 1 | I159: 학사과정 | J159: 교양(기초) | K159: 3 | L159: 3 | M159: 0 | O159: 40 | P159: 20 | Q159: 0.5
A160: 157 | B160: 학부 | C160: 인문대학 | D160: 한문학과 | E160: 1107-7003 | F160: 00 | G160: 동양고전과리더쉽 | H160: 1 | I160: 학사과정 | J160: 교양(소양) | K160: 3 | L160: 3 | M160: 0 | O160: 60 | P160: 30 | Q160: 0.5
A161: 158 | B161: 학부 | C161: 인문대학 | D161: 한문학과 | E161: 1107-7004 | F161: 00 | G161: 전통사회의프로페셔널 | H161: 1 | I161: 학사과정 | J161: 교양(소양) | K161: 3 | L161: 3 | M161: 0 | O161: 60 | P161: 30 | Q161: 0.5
A162: 159 | B162: 학부 | C162: 인문대학 | D162: 언어학과 | E162: 1108-1006 | F162: 00 | G162: 일반언어학 | H162: 1 | I162: 학사과정 | J162: 전공(기초) | K162: 3 | L162: 3 | M162: 0 | N162: 강아름 | O162: 30 | P162: 25 | Q162: 0.8333333333
A163: 160 | B163: 학부 | C163: 인문대학 | D163: 언어학과 | E163: 1108-2002 | F163: 00 | G163: 음운론 | H163: 2 | I163: 학사과정 | J163: 전공(핵심) | K163: 3 | L163: 3 | M163: 0 | N163: 윤수연 | O163: 30 | P163: 25 | Q163: 0.8333333333
A164: 161 | B164: 학부 | C164: 인문대학 | D164: 언어학과 | E164: 1108-3007 | F164: 00 | G164: 화용론 | H164: 3 | I164: 학사과정 | J164: 전공(핵심) | K164: 3 | L164: 3 | M164: 0 | N164: 강아름 | O164: 25 | P164: 20 | Q164: 0.8
A165: 162 | B165: 학부 | C165: 인문대학 | D165: 사학과 | E165: 1100-1002 | F165: 06 | G165: 미래설계상담2 | H165: 1 | I165: 학사과정 | J165: 전공(기초) | K165: 0 | L165: 0 | M165: 0 | N165: 박윤덕 | O165: 100 | P165: 100 | Q165: 1
A166: 163 | B166: 학부 | C166: 인문대학 | D166: 사학과 | E166: 1100-2002 | F166: 06 | G166: 미래설계상담4 | H166: 2 | I166: 학사과정 | J166: 전공(기초) | K166: 0 | L166: 0 | M166: 0 | N166: 박윤덕 | O166: 100 | P166: 100 | Q166: 1
A167: 164 | B167: 학부 | C167: 인문대학 | D167: 사학과 | E167: 1100-3002 | F167: 05 | G167: 미래설계상담6 | H167: 3 | I167: 학사과정 | J167: 전공(기초) | K167: 0 | L167: 0 | M167: 0 | N167: 박윤덕 | O167: 100 | P167: 100 | Q167: 1
A168: 165 | B168: 학부 | C168: 인문대학 | D168: 사학과 | E168: 1109-1006 | F168: 00 | G168: 학술답사2 | H168: 1 | I168: 학사과정 | J168: 전공(기초) | K168: 0 | L168: 0 | M168: 0 | N168: 박윤덕 | O168: 100 | P168: 100 | Q168: 1
A169: 166 | B169: 학부 | C169: 인문대학 | D169: 사학과 | E169: 1109-2018 | F169: 00 | G169: 학술답사4 | H169: 2 | I169: 학사과정 | J169: 전공(기초) | K169: 0 | L169: 0 | M169: 0 | N169: 박윤덕 | O169: 100 | P169: 100 | Q169: 1
A170: 167 | B170: 학부 | C170: 인문대학 | D170: 사학과 | E170: 1109-3020 | F170: 00 | G170: 학술답사6 | H170: 3 | I170: 학사과정 | J170: 전공(핵심) | K170: 0 | L170: 0 | M170: 0 | N170: 박윤덕 | O170: 100 | P170: 100 | Q170: 1
A171: 168 | B171: 학부 | C171: 인문대학 | D171: 사학과 | E171: 1109-4013 | F171: 00 | G171: 학술답사8 | H171: 4 | I171: 학사과정 | J171: 전공(핵심) | K171: 0 | L171: 0 | M171: 0 | N171: 박윤덕 | O171: 100 | P171: 100 | Q171: =IFERROR(P171/O171,"") -> 1
A172: 169 | B172: 학부 | C172: 인문대학 | D172: 사학과 | E172: 1109-7001 | F172: 00 | G172: 처음 만나는 역사학 | H172: 1 | I172: 학사과정 | J172: 교양(소양) | K172: 3 | L172: 3 | M172: 0 | O172: 80 | P172: 40 | Q172: 0.5
A173: 170 | B173: 학부 | C173: 인문대학 | D173: 사학과 | E173: 1109-7002 | F173: 00 | G173: 역사와리더십 | H173: 1 | I173: 학사과정 | J173: 교양(균형) | K173: 3 | L173: 3 | M173: 0 | N173: 김준영 | O173: 80 | P173: 40 | Q173: 0.5
A174: 171 | B174: 학부 | C174: 인문대학 | D174: 사학과 | E174: 1109-7002 | F174: 01 | G174: 역사와리더십 | H174: 1 | I174: 학사과정 | J174: 교양(균형) | K174: 3 | L174: 3 | M174: 0 | N174: 김준영 | O174: 80 | P174: 40 | Q174: 0.5
A175: 172 | B175: 학부 | C175: 인문대학 | D175: 사학과 | E175: 1109-7004 | F175: 00 | G175: 서양의 역사와 문화 | H175: 1 | I175: 학사과정 | J175: 교양(소양) | K175: 3 | L175: 3 | M175: 0 | N175: 오두영 | O175: 60 | P175: 30 | Q175: 0.5
A176: 173 | B176: 학부 | C176: 인문대학 | D176: 사학과 | E176: 1109-7005 | F176: 00 | G176: 영상으로 보는 중국문화 | H176: 1 | I176: 학사과정 | J176: 교양(소양) | K176: 3 | L176: 3 | M176: 0 | N176: 정일교 | O176: 70 | P176: 40 | Q176: 0.5714285714
A177: 174 | B177: 학부 | C177: 인문대학 | D177: 사학과 | E177: 1109-7006 | F177: 00 | G177: 동양의 역사와 인물 | H177: 1 | I177: 학사과정 | J177: 교양(소양) | K177: 3 | L177: 3 | M177: 0 | N177: 박서진 | O177: 50 | P177: 30 | Q177: 0.6
A178: 175 | B178: 학부 | C178: 인문대학 | D178: 사학과 | E178: 1109-7007 | F178: 00 | G178: 실크로드 문화 기행 | H178: 1 | I178: 학사과정 | J178: 교양(소양) | K178: 3 | L178: 3 | M178: 0 | N178: 정일교 | O178: 70 | P178: 40 | Q178: 0.5714285714
A179: 176 | B179: 학부 | C179: 인문대학 | D179: 사학과 | E179: 1109-7008 | F179: 00 | G179: 영상으로 보는 유럽문화 | H179: 1 | I179: 학사과정 | J179: 교양(균형) | K179: 3 | L179: 3 | M179: 0 | N179: 허현 | O179: 80 | P179: 40 | Q179: 0.5
A180: 177 | B180: 학부 | C180: 인문대학 | D180: 사학과 | E180: 1109-7008 | F180: 01 | G180: 영상으로 보는 유럽문화 | H180: 1 | I180: 학사과정 | J180: 교양(균형) | K180: 3 | L180: 3 | M180: 0 | N180: 강미숙 | O180: 80 | P180: 40 | Q180: 0.5
A181: 178 | B181: 학부 | C181: 인문대학 | D181: 사학과 | E181: 1109-7008 | F181: 02 | G181: 영상으로 보는 유럽문화 | H181: 1 | I181: 학사과정 | J181: 교양(균형) | K181: 3 | L181: 3 | M181: 0 | N181: 오두영 | O181: 30 | P181: 20 | Q181: 0.6666666667
A182: 179 | B182: 학부 | C182: 인문대학 | D182: 사학과 | E182: 1109-7009 | F182: 00 | G182: 공학도를 위한 세계문화 | H182: 1 | I182: 학사과정 | J182: 교양(소양) | K182: 3 | L182: 3 | M182: 0 | N182: 김충현 | O182: 80 | P182: 40 | Q182: 0.5
A183: 180 | B183: 학부 | C183: 인문대학 | D183: 사학과 | E183: 1109-7009 | F183: 01 | G183: 공학도를 위한 세계문화 | H183: 1 | I183: 학사과정 | J183: 교양(소양) | K183: 3 | L183: 3 | M183: 0 | N183: 오종현 | O183: 80 | P183: 40 | Q183: 0.5
A184: 181 | B184: 학부 | C184: 인문대학 | D184: 사학과 | E184: 1109-7009 | F184: 02 | G184: 공학도를 위한 세계문화 | H184: 1 | I184: 학사과정 | J184: 교양(소양) | K184: 3 | L184: 3 | M184: 0 | O184: 80 | P184: 40 | Q184: 0.5
A185: 182 | B185: 학부 | C185: 인문대학 | D185: 사학과 | E185: 1109-7010 | F185: 00 | G185: 동양의문화와유산 | H185: 1 | I185: 학사과정 | J185: 교양(소양) | K185: 3 | L185: 3 | M185: 0 | N185: 정일교 | O185: 30 | P185: 20 | Q185: 0.6666666667
A186: 183 | B186: 학부 | C186: 인문대학 | D186: 사학과 | E186: 1109-7011 | F186: 00 | G186: 지중해문명기행 | H186: 1 | I186: 학사과정 | J186: 교양(소양) | K186: 3 | L186: 3 | M186: 0 | N186: 김충현 | O186: 70 | P186: 35 | Q186: 0.5
A187: 184 | B187: 학부 | C187: 인문대학 | D187: 사학과 | E187: 1109-7012 | F187: 00 | G187: 동남아시아의역사와문화 | H187: 1 | I187: 학사과정 | J187: 교양(소양) | K187: 3 | L187: 3 | M187: 0 | N187: 이준형 | O187: 50 | P187: 30 | Q187: 0.6
A188: 185 | B188: 학부 | C188: 인문대학 | D188: 사학과 | E188: 1109-7015 | F188: 00 | G188: 서양사의아웃사이더 | H188: 1 | I188: 학사과정 | J188: 교양(소양) | K188: 3 | L188: 3 | M188: 0 | N188: 오종현 | O188: 70 | P188: 35 | Q188: 0.5
A189: 186 | B189: 학부 | C189: 인문대학 | D189: 철학과 | E189: 1112-2002 | F189: 00 | G189: 인식론 | H189: 2 | I189: 학사과정 | J189: 전공(핵심) | K189: 3 | L189: 3 | M189: 0 | N189: 한대석 | O189: 35 | P189: 20 | Q189: =IFERROR(P189/O189,"") -> 0.5714285714
A190: 187 | B190: 학부 | C190: 인문대학 | D190: 철학과 | E190: 1112-2007 | F190: 00 | G190: 왕양명의 생명철학 | H190: 2 | I190: 학사과정 | J190: 전공(핵심) | K190: 3 | L190: 3 | M190: 0 | N190: 김세정 | O190: 35 | P190: 30 | Q190: 0.8571428571
A191: 188 | B191: 학부 | C191: 인문대학 | D191: 철학과 | E191: 1112-2008 | F191: 00 | G191: 중국불교사상 | H191: 2 | I191: 학사과정 | J191: 전공(핵심) | K191: 3 | L191: 3 | M191: 0 | N191: 김방룡 | O191: 35 | P191: 25 | Q191: 0.7142857143
A192: 189 | B192: 학부 | C192: 인문대학 | D192: 철학과 | E192: 1112-2010 | F192: 00 | G192: 현대철학의 이해 | H192: 2 | I192: 학사과정 | J192: 전공(핵심) | K192: 3 | L192: 3 | M192: 0 | N192: 양해림 | O192: 35 | P192: 25 | Q192: 0.7142857143
A193: 190 | B193: 학부 | C193: 인문대학 | D193: 철학과 | E193: 1112-3006 | F193: 00 | G193: 한국양명학의 주체성과 창조정신 | H193: 3 | I193: 학사과정 | J193: 전공(심화) | K193: 3 | L193: 3 | M193: 0 | N193: 김세정 | O193: 35 | P193: 30 | Q193: 0.8571428571
A194: 191 | B194: 학부 | C194: 인문대학 | D194: 철학과 | E194: 1112-3013 | F194: 00 | G194: 헬레니즘철학 | H194: 3 | I194: 학사과정 | J194: 전공(심화) | K194: 3 | L194: 3 | M194: 0 | N194: 이윤철 | O194: 35 | P194: 25 | Q194: 0.7142857143
A195: 192 | B195: 학부 | C195: 인문대학 | D195: 철학과 | E195: 1112-4001 | F195: 00 | G195: 영미철학 | H195: 4 | I195: 학사과정 | J195: 전공(심화) | K195: 3 | L195: 3 | M195: 0 | N195: 한대석 | O195: 35 | P195: 25 | Q195: 0.7142857143
A196: 193 | B196: 학부 | C196: 인문대학 | D196: 철학과 | E196: 1112-4011 | F196: 00 | G196: 현대 해석학 강의 | H196: 4 | I196: 학사과정 | J196: 전공(심화) | K196: 3 | L196: 3 | M196: 0 | N196: 양해림 | O196: 35 | P196: 25 | Q196: 0.7142857143
A197: 194 | B197: 학부 | C197: 인문대학 | D197: 철학과 | E197: 1112-4014 | F197: 00 | G197: 제자백가의 사상 | H197: 4 | I197: 학사과정 | J197: 전공(심화) | K197: 3 | L197: 3 | M197: 0 | N197: 이진경 | O197: 35 | P197: 25 | Q197: 0.7142857143
A198: 195 | B198: 학부 | C198: 인문대학 | D198: 철학과 | E198: 1112-7007 | F198: 02 | G198: 공학윤리 | H198: 1 | I198: 학사과정 | J198: 교양(소양) | K198: 3 | L198: 3 | M198: 0 | N198: 문선 | O198: 50 | P198: 40 | Q198: 0.8
A199: 196 | B199: 학부 | C199: 인문대학 | D199: 철학과 | E199: 1112-7007 | F199: 03 | G199: 공학윤리 | H199: 1 | I199: 학사과정 | J199: 교양(소양) | K199: 3 | L199: 3 | M199: 0 | N199: 김경배 | O199: 50 | P199: 40 | Q199: 0.8
A200: 197 | B200: 학부 | C200: 인문대학 | D200: 철학과 | E200: 1112-7007 | F200: 04 | G200: 공학윤리 | H200: 1 | I200: 학사과정 | J200: 교양(소양) | K200: 3 | L200: 3 | M200: 0 | N200: 황수영 | O200: 50 | P200: 30 | Q200: 0.6
... 419 more rows
